[Event "MPL 19th IND-ch Teams Women 2022"]
[Site "Jalgaon"]
[Date "2022.04.10"]
[Round "3.4"]
[White "Mohota, Nisha"]
[Black "Vaishali R"]
[Result "1/2-1/2"]
[ECO "D04"]
[WhiteElo "2147"]
[BlackElo "2403"]
[Annotator "TA"]
[PlyCount "160"]
[EventDate "2022.04.10"]
[EventType "team-tourn"]
[EventCountry "IND"]
[SourceTitle "playchess.com"]
[Source "ChessBase"]
[SourceQuality "1"]
[TimeControl "5400+30"]

{[%evp 9,160,-12,-20,-23,-24,-50,-45,-60,-29,-44,-20,-25,-26,-25,-28,-22,-3,-70,-90,-87,-70,-55,-87,-63,-64,-85,-85,-106,-82,-83,-95,-122,-110,-108,-120,-103,-85,-138,-103,-225,-93,-86,0,-237,-234,-235,-235,-226,-217,-233,-232,-226,-241,-226,-172,-179,-179,-168,-169,-192,-161,-194,-201,-172,-183,-175,0,-219,-226,-218,-210,-217,-184,-173,-159,-165,-152,-141,-141,-258,-149,-150,-158,-134,-108,-119,-92,-92,-92,-92,-92,-103,0,-81,-14,-22,-33,-22,0,0,0,-1,0,0,0,-15,-6,-11,-37,-114,-93,-93,-93,-93,-93,-93,-93,-93,-93,-93,-53,-336,-336,-436,-114,-114,-114,-114,-114,-114,-114,-114,0,-12847,-12847,-12849,-12849,-27992,-27992,-27993,-27986,-27987,-28000,-28000,-28000,-28000,-28000,-28000,-28000,-28000,-28000,-28000,-28000]} 1. d4 {[%emt 0:00:07]} Nf6 {[%emt 0:00:41]} 2. Nf3 {[%emt 0:00:05]} d5 {[%emt 0:00:14]} 3. e3 {[%emt 0:00:03]} c5 {[%emt 0:00:29]} 4. b3 Nc6 {[%emt 0:01:06]} 5. Bd3 {[%emt 0:01:13]} cxd4 {[%emt 0:02:15]} 6. exd4 {[%emt 0:00:08] D04: Colle System.} Bg4 {[%emt 0:00:18][%cal Oc6d4]} 7. Be3 {[%emt 0:04:24]} e6 {[%emt 0:01:52] [#]} 8. O-O $146 {[%emt 0:00:21] Black is slightly better.} ({Predecessor:} 8. Nbd2 Bb4 9. a3 Bc3 10. Be2 Bxa1 11. Qxa1 O-O 12. h3 Bf5 13. Qb2 Ne4 14. g4 Nxd2 15. Bxd2 {0-1 (39) Paras,R (1653)-Illingworth,M (2501) Tumon 2019}) 8... Bd6 {[%emt 0:01:29]} (8... Ne4 $5 {[%cal Rf8d6]}) 9. Nbd2 {[%emt 0:03:45]} O-O {[%emt 0:02:34]} 10. c4 {[%emt 0:04:55]} e5 {[%emt 0:13:58]} 11. dxe5 {[%emt 0:04:28]} Bxe5 {[%emt 0:00:35]} 12. Rc1 {[%emt 0:11:59]} Nb4 {[%emt 0:09:20][%csl LRa2,LRd3][%cal Bc6b4,Bb4a2,Ba2c3][%mdl 32]} 13. Be2 {[%emt 0:05:09] [#]} (13. Bb1 $1 $11) 13... d4 $1 $36 {[%emt 0:03:24][%mdl 2048] Black is in control.} 14. Nxe5 {[%emt 0:01:53] Bg5 is the strong threat.} dxe3 {[%emt 0:00:14]} 15. fxe3 {[%emt 0:08:43]} Bxe2 {[%emt 0:00:06]} 16. Qxe2 {[%emt 0:00:03]} Nxa2 {[%emt 0:00:23]} 17. Ra1 {[%emt 0:06:36]} Nc3 {[%emt 0:01:30]} 18. Qe1 {[%emt 0:00:04][%cal Of1f6]} Re8 {[%emt 0:06:42]} 19. Ndf3 {[%emt 0:02:02]} Nce4 {[%emt 0:00:22]} 20. Qa5 {[%emt 0:02:29]} b6 $1 {[%emt 0:10:11]} 21. Qa3 {[%emt 0:06:48]} Qc7 {[%emt 0:07:59]} 22. Qb2 {[%emt 0:00:19]} Re6 {[%emt 0:00:20]} 23. Rfd1 {[%emt 0:16:58]} ({White should play} 23. Nd3) 23... Rae8 {[%emt 0:01:43]} 24. Qd4 {[%emt 0:03:55]} (24. Nd3 $17) 24... Rd6 {[%emt 0:07:32]} (24... Rxe5 25. Nxe5 Rxe5 26. Qd8+ Qxd8 27. Rxd8+ Ne8 28. Rxa7 $11) (24... a5 $19 {has better winning chances. Hoping for ...g5.} 25. Nd3 Rd6) 25. Qb2 $17 {[%emt 0:01:09]} Rde6 $2 {[%emt 0:00:10]} (25... a5 $17 26. Rxd6 Qxd6) 26. Qd4 $19 {[%emt 0:00:31]} a5 {[%emt 0:03:40]} (26... Rxe5 27. Nxe5 Rxe5 28. Qd8+ Qxd8 29. Rxd8+ Ne8 30. Rxa7 $11) 27. Nd3 {[%emt 0:03:33]} Rd6 $1 {[%emt 0:03:32]} 28. Qb2 {[%emt 0:00:42]} Ng4 {[%emt 0:00:44]} 29. Nde5 {[%emt 0:03:06]} Nxe5 {[%emt 0:07:36]} (29... Nxe3 30. Rxd6 Qxd6 31. Re1 $17) 30. Nxe5 {[%emt 0:00:07]} Qc5 {[%emt 0:00:49][%csl LRe3,LRe5]} 31. Rxd6 {[%emt 0:05:54]} Qxe3+ {[%emt 0:00:18]} (31... Qxd6 32. Nf3 $17) 32. Kf1 {[%emt 0:00:04]} Nxd6 {[%emt 0:00:17]} 33. Re1 {[%emt 0:00:23]} Qf4+ {[%emt 0:00:17]} 34. Nf3 {[%emt 0:01:00]} Rxe1+ {[%emt 0:07:24]} 35. Kxe1 {[%emt 0:00:02]} Qe3+ {[%emt 0:00:02]} 36. Kf1 {[%emt 0:01:25]} Qd3+ {[%emt 0:00:18]} 37. Ke1 {[%emt 0:00:14]} Qe3+ {[%emt 0:00:04]} 38. Kf1 $1 {[%emt 0:00:05]} Ne4 {[%emt 0:01:15]} ({And not} 38... Qd3+ 39. Ke1 $17) 39. Qd4 {[%emt 0:01:09]} Qxd4 {[%emt 0:00:37]} ({Weaker is} 39... Qc1+ 40. Ke2 f5 41. Qd5+ Kf8 42. Qxf5+ Nf6 43. Qc8+ Kf7 44. Qc7+ (44. Ne5+ Ke7 $11) 44... Kg6 45. Qg3+ Kh6 46. Nd2 $11) 40. Nxd4 {[%emt 0:00:02][%mdl 4096] Endgame KN-KN} Nc5 {[%emt 0:00:06]} 41. Ke2 {[%emt 0:00:17]} Kf8 {[%emt 0:00:21]} 42. Kd2 {[%emt 0:00:14]} Ke7 {[%emt 0:03:36]} 43. Kc3 {[%emt 0:02:29]} Ne6 {[%emt 0:01:29]} 44. Nb5 {[%emt 0:01:19]} (44. Nf5+ $17 {was called for.} Kd7 45. b4) 44... Kd7 {[%emt 0:01:36]} (44... f5 $1 $19 45. b4 g5) 45. b4 $17 {[%emt 0:00:27]} f5 {[%emt 0:00:22]} 46. Kb3 {[%emt 0:00:23]} axb4 {[%emt 0:02:00]} 47. Kxb4 {[%emt 0:00:02]} g5 {[%emt 0:00:38]} 48. Nc3 {[%emt 0:00:49]} Kc6 {[%emt 0:00:45] Threatens to win with ...Nf4.} 49. Nd5 {[%emt 0:00:31]} f4 {[%emt 0:00:57]} 50. Nf6 {[%emt 0:00:20]} h6 {[%emt 0:00:45]} (50... Kd6 $1 $17 {[%cal Rd6e5]} 51. Ng4 Nd4) 51. Kc3 {[%emt 0:00:59]} (51. Ng8 $11) 51... Kd6 {[%emt 0:00:22]} (51... Ng7 $1 $17 {White must now prevent ...Nf5.} 52. Kd3 Nf5) 52. Kd3 $1 $11 {[%emt 0:00:39]} Nc5+ {[%emt 0:00:26]} 53. Kd4 {[%emt 0:00:14]} Ke6 {[%emt 0:00:21]} 54. Nd5 {[%emt 0:00:52]} Nd7 {[%emt 0:00:05]} 55. h3 {[%emt 0:00:40]} Kd6 {[%emt 0:00:53] Prevents Nc7.} 56. Nc3 {[%emt 0:01:39]} Nc5 {[%emt 0:00:52]} 57. Nb5+ {[%emt 0:00:26]} Ke6 {[%emt 0:00:13]} 58. Nc7+ {[%emt 0:00:08]} Kf5 {[%emt 0:00:25]} 59. Nd5 {[%emt 0:00:39]} Nd7 {[%emt 0:00:43]} 60. Ne7+ {[%emt 0:00:31]} Kf6 $1 {[%emt 0:00:05]} 61. Nd5+ {[%emt 0:00:34]} Ke6 {[%emt 0:00:10]} 62. Nc7+ {[%emt 0:00:14]} Kf5 $1 {[%emt 0:00:13] aiming for ...g4.} 63. Nd5 {[%emt 0:00:48] [#]} h5 $1 {[%emt 0:00:28]} 64. Ne7+ {[%emt 0:00:27]} Kf6 {[%emt 0:00:11]} 65. Nc6 $2 {[%emt 0:00:45][%mdl 8192]} (65. Nd5+ $15 Ke6 66. Nc7+ Kf5 67. Ne8) 65... Ke6 $19 {[%emt 0:00:40]} 66. Nb4 {[%emt 0:00:29]} Nf6 $2 {[%emt 0:01:25]} (66... Kf5 $19 67. Nd5 g4 68. hxg4+ Kxg4) 67. Nd3 $17 {[%emt 0:00:29]} Kf5 {[%emt 0:00:22]} 68. c5 {[%emt 0:00:38]} bxc5+ {[%emt 0:00:18]} 69. Nxc5 {[%emt 0:00:10]} g4 {[%emt 0:00:47]} 70. hxg4+ {[%emt 0:00:13]} Kxg4 {[%emt 0:00:48]} ({Black should try} 70... hxg4 $17 {Strongly threatening ...g3.} 71. Nb3 Ne4) 71. Nd3 $2 {[%emt 0:00:22][%mdl 8192] [#]} (71. Ke5 $11) 71... h4 $1 $19 {[%emt 0:00:35]} 72. Ke5 {[%emt 0:00:47] [#]} f3 $1 {[%emt 0:00:40]} 73. gxf3+ {[%emt 0:00:37]} (73. Nf2+ Kg3) 73... Kxf3 {[%emt 0:00:03] Mate.} 74. Nf4 {[%emt 0:00:41]} Nh5 {[%emt 0:00:45]} 75. Nh3 {[%emt 0:00:22]} Ng3 {[%emt 0:00:28]} 76. Kf6 {[%emt 0:00:29]} Nh5+ {[%emt 0:00:45]} 77. Kg5 {[%emt 0:00:10]} Kg3 {[%emt 0:00:04]} 78. Nf2 {[%emt 0:00:26]} Nf6 {[%emt 0:00:53]} 79. Nh1+ {[%emt 0:00:13]} Kh3 {[%emt 0:00:03]} 80. Nf2+ {[%emt 0:00:08]} Kg3 {[%emt 0:00:39][%mdl 32768] Weighted Error Value: White=0.14 (very precise) /Black=0.18 (very precise) . An unexpected result.} 1/2-1/2

[Event "MPL 19th IND-ch Teams Women 2022"]
[Site "Jalgaon"]
[Date "2022.04.11"]
[Round "4.1"]
[White "Niharika Ch"]
[Black "Arpita, Mukherjee"]
[Result "0-1"]
[ECO "B92"]
[WhiteElo "1992"]
[BlackElo "2260"]
[Annotator "RC"]
[PlyCount "42"]
[EventDate "2022.04.10"]
[EventType "team-tourn"]
[EventCountry "IND"]
[SourceTitle "playchess.com"]
[Source "ChessBase"]
[SourceQuality "1"]
[TimeControl "5400+30"]

1. e4 c5 2. Nf3 d6 3. d4 cxd4 4. Nxd4 Nf6 5. Nc3 a6 6. Be2 e5 7. Nb3 Be7 8. Be3 Be6 9. g4 d5 10. exd5 Nxd5 11. Bf3 Bb4 12. Bd2 Nc6 13. Ne4 O-O 14. c3 Be7 15. Nec5 Bxc5 16. Nxc5 Qb6 17. b4 Rad8 18. Bxd5 Bxd5 19. O-O e4 20. Qc1 Ne5 21. h3 Nf3+ 0-1

[Event "MPL 19th IND-ch Teams Women 2022"]
[Site "Jalgaon"]
[Date "2022.04.11"]
[Round "4.2"]
[White "Divya Deshmukh"]
[Black "Toshali, V."]
[Result "1/2-1/2"]
[ECO "B12"]
[WhiteElo "2301"]
[BlackElo "2126"]
[Annotator "RC"]
[PlyCount "37"]
[EventDate "2022.04.10"]
[EventType "team-tourn"]
[EventCountry "IND"]
[SourceTitle "playchess.com"]
[Source "ChessBase"]
[SourceQuality "1"]
[TimeControl "5400+30"]

1. e4 {[%emt 0:00:03]} c6 {[%emt 0:00:48]} 2. d4 {[%emt 0:00:06]} d5 {[%emt 0:00:08]} 3. e5 {[%emt 0:00:07]} Bf5 {[%emt 0:00:02]} 4. h4 {[%emt 0:00:17]} a6 {[%emt 0:00:01]} 5. Ne2 {[%emt 0:03:10]} h6 {[%emt 0:04:57]} 6. Ng3 {[%emt 0:03:30]} Bg6 {[%emt 0:00:02]} 7. h5 {[%emt 0:03:08]} Bh7 {[%emt 0:00:02]} 8. e6 {[%emt 0:00:51]} fxe6 {[%emt 0:02:56]} 9. Bd3 {[%emt 0:04:32]} Nf6 {[%emt 0:00:34]} 10. Bxh7 {[%emt 0:01:10]} Nxh7 11. Qd3 {[%emt 0:05:29]} Qd6 {[%emt 0:05:34]} 12. Ne2 {[%emt 0:14:27]} e5 {[%emt 0:05:54]} 13. dxe5 {[%emt 0:02:18]} Qxe5 {[%emt 0:00:04]} 14. O-O {[%emt 0:02:11]} Nd7 {[%emt 0:05:33]} 15. Nf4 {[%emt 0:09:05]} Qe4 {[%emt 0:02:36]} 16. Qd1 {[%emt 0:18:35]} e5 {[%emt 0:06:38]} 17. Ng6 {[%emt 0:08:29]} Rg8 {[%emt 0:00:26]} 18. Bf4 {[%emt 0:02:16]} O-O-O {[%emt 0:16:34]} 19. Re1 {[%emt 0:01:13]} 1/2-1/2

[Event "MPL 19th IND-ch Teams Women 2022"]
[Site "Jalgaon"]
[Date "2022.04.11"]
[Round "4.3"]
[White "Kotepalli, Sai Nirupama"]
[Black "Vaishali R"]
[Result "0-1"]
[ECO "A45"]
[WhiteElo "1914"]
[BlackElo "2403"]
[Annotator "TA"]
[PlyCount "66"]
[EventDate "2022.04.10"]
[EventType "team-tourn"]
[EventCountry "IND"]
[SourceTitle "playchess.com"]
[Source "ChessBase"]
[SourceQuality "1"]
[TimeControl "5400+30"]

{[%evp 14,66,-24,-21,-15,-55,-43,-46,-44,-52,-50,-55,-58,-54,-36,-33,-23,-29,-3,-98,-78,-95,-89,-93,-60,-79,-68,-68,-78,-82,-80,-135,0,0,0,-32,-36,-131,-141,-115,-132,-253,-251,-288,-287,-377,-360,-875,-866,-829,-821,-29991,-29992,-29994,-29994]} 1. d4 {[%emt 0:02:12]} Nf6 {[%emt 0:00:36]} 2. Bf4 {[%emt 0:00:06]} d5 {[%emt 0:00:15]} 3. e3 {[%emt 0:00:11]} c5 {[%emt 0:00:29]} 4. c3 {[%emt 0:00:08]} Nc6 {[%emt 0:00:08]} 5. Nf3 {[%emt 0:00:19]} Qb6 {[%emt 0:00:36]} 6. Qb3 {[%emt 0:00:12]} c4 {[%emt 0:00:05]} 7. Qc2 {[%emt 0:01:55] 7.Qc2 is better than 7.Qxb6.} Bf5 {[%emt 0:00:14]} 8. Qc1 {[%emt 0:00:31]} ({Not} 8. Qxf5 $2 Qxb2 9. Nbd2 Qxa1+ $19) 8... Nh5 {[%emt 0:01:51] D02: 1 d4 d5 2 Nf3 sidelines, including 2...Nf6 3 g3 and 2...Nf6 3 Bf4.} 9. Bg5 {[%emt 0:02:56]} h6 {[%emt 0:02:10]} 10. Bh4 {[%emt 0:00:03]} g5 {[%emt 0:00:05] Black is slightly better.} 11. Bg3 {[%emt 0:00:03]} Bg7 {[%emt 0:02:25]} 12. Be2 {[%emt 0:00:29]} Nxg3 {[%emt 0:11:51]} 13. hxg3 {[%emt 0:00:03]} e5 {[%emt 0:03:04]} 14. dxe5 {[%emt 0:03:22]} Bxe5 {[%emt 0:07:41] [#]} 15. Na3 $146 {[%emt 0:09:40]} ({Predecessor:} 15. Nbd2 Bf6 16. O-O Qc7 17. b3 cxb3 18. axb3 O-O 19. Ra4 Rfe8 20. Re1 a6 21. Nb1 {0-1 (36) Pribylova,S (1985)-Sorm,D (2282) Prague 2019}) 15... O-O-O {[%emt 0:12:08]} 16. Nd2 {[%emt 0:06:54]} (16. b3 $11 {keeps the balance.}) 16... Rhe8 {[%emt 0:14:33][%cal Oe5g3] Threatens to win with ...Bxg3!} 17. g4 {[%emt 0:18:45]} Bg6 {[%emt 0:02:36] &Nero is much more active.} 18. Nc2 {[%emt 0:06:54]} Bg7 {[%emt 0:07:55]} 19. Nf3 $1 {[%emt 0:02:44]} f5 {[%emt 0:06:11]} 20. gxf5 {[%emt 0:04:26]} Bxf5 {[%emt 0:00:03]} 21. O-O {[%emt 0:07:58]} Be4 {[%emt 0:03:57] This bishop pair is nice.} 22. Nd2 {[%emt 0:04:02]} (22. Ncd4 $142) 22... Kb8 {[%emt 0:06:13]} (22... Bg6 $17 {Strongly threatening ...h5.} 23. Nf3 Kb8) 23. Nxe4 $11 {[%emt 0:01:51]} Rxe4 {[%emt 0:00:02]} 24. Bf3 {[%emt 0:01:02]} Re7 {[%emt 0:00:49][%cal Oh6h5]} 25. Rd1 {[%emt 0:01:31] [#]} ({White should try} 25. Be2 $15) 25... Ne5 $1 $17 {[%emt 0:00:48]} 26. Be2 {[%emt 0:00:40]} g4 {[%emt 0:01:16][%cal Bg5g4,Bg4f3][%mdl 32]} 27. Nd4 {[%emt 0:03:18]} (27. e4 $17) 27... Rf8 $19 {[%emt 0:01:06]} 28. Qc2 {[%emt 0:05:13]} Qf6 {[%emt 0:01:06]} 29. Rf1 {[%emt 0:00:35]} Qg5 {[%emt 0:01:05][%cal Oe5f3] ...Nf3+! is the strong threat.} 30. b3 $2 {[%emt 0:01:54] [#]} (30. Rfd1 g3 31. fxg3) 30... Nf3+ $1 {[%emt 0:00:35][%mdl 512]} 31. Bxf3 {[%emt 0:01:21]} gxf3 {[%emt 0:00:08][%csl Gf3][%cal Rg5g2]} 32. g3 {[%emt 0:00:58]} Bxd4 {[%emt 0:00:21]} 33. exd4 {[%emt 0:00:33]} Qh5 {[%emt 0:00:07] Weighted Error Value: White=0.57/Black=0.10 (very precise)} 0-1

[Event "MPL 19th IND-ch Teams Women 2022"]
[Site "Jalgaon"]
[Date "2022.04.11"]
[Round "4.4"]
[White "Priyanka, Kumari"]
[Black "Bommini Mounika Akshaya"]
[Result "1/2-1/2"]
[ECO "C70"]
[WhiteElo "1910"]
[BlackElo "2145"]
[Annotator "RC"]
[PlyCount "78"]
[EventDate "2022.04.10"]
[EventType "team-tourn"]
[EventCountry "IND"]
[SourceTitle "playchess.com"]
[Source "ChessBase"]
[SourceQuality "1"]
[TimeControl "5400+30"]

1. e4 {[%emt 0:00:14]} e5 {[%emt 0:01:45]} 2. Nf3 {[%emt 0:00:17]} Nc6 {[%emt 0:00:05]} 3. Bb5 {[%emt 0:00:49]} a6 {[%emt 0:00:05]} 4. Ba4 {[%emt 0:00:03]} f5 {[%emt 0:00:06]} 5. d3 {[%emt 0:03:33]} fxe4 {[%emt 0:00:10]} 6. dxe4 {[%emt 0:00:08]} Nf6 {[%emt 0:00:05]} 7. Nc3 {[%emt 0:06:44]} Bb4 {[%emt 0:00:06]} 8. Qd3 {[%emt 0:04:52]} Bxc3+ {[%emt 0:00:55]} 9. bxc3 {[%emt 0:00:45]} O-O {[%emt 0:01:21]} 10. Bb3+ {[%emt 0:11:17]} Kh8 {[%emt 0:00:18]} 11. Bg5 {[%emt 0:07:41]} h6 {[%emt 0:05:40]} 12. Nh4 {[%emt 0:07:58]} Qe8 {[%emt 0:06:03]} 13. Bd2 {[%emt 0:02:47]} d6 {[%emt 0:07:44]} 14. f3 {[%emt 0:13:26]} Qh5 {[%emt 0:15:04]} 15. g3 {[%emt 0:01:41]} Na5 {[%emt 0:06:45]} 16. O-O-O {[%emt 0:02:36]} Nxb3+ {[%emt 0:02:35]} 17. axb3 {[%emt 0:02:24]} a5 {[%emt 0:00:32]} 18. Kb2 {[%emt 0:03:29]} Bd7 {[%emt 0:08:25]} 19. Be1 {[%emt 0:04:21]} a4 {[%emt 0:01:58]} 20. g4 {[%emt 0:01:00]} Qf7 {[%emt 0:01:27]} 21. b4 {[%emt 0:07:22]} a3+ {[%emt 0:03:01]} 22. Ka1 {[%emt 0:00:38]} Be6 {[%emt 0:00:48]} 23. Rg1 {[%emt 0:00:53]} Nh7 {[%emt 0:09:38]} 24. Bd2 {[%emt 0:02:03]} Ng5 {[%emt 0:03:09]} 25. Nf5 {[%emt 0:03:12]} Nh3 {[%emt 0:00:51]} 26. Rg2 {[%emt 0:04:18]} Bc4 {[%emt 0:03:49]} 27. Qe3 {[%emt 0:00:09]} Nf4 {[%emt 0:00:09]} 28. Rg3 {[%emt 0:00:44]} Qd7 {[%emt 0:06:14]} 29. g5 {[%emt 0:03:07]} h5 {[%emt 0:05:11]} 30. Qf2 {[%emt 0:02:03]} g6 {[%emt 0:07:00]} 31. Bxf4 {[%emt 0:01:00]} exf4 {[%emt 0:02:23]} 32. Rg2 {[%emt 0:01:58]} Bg8 {[%emt 0:01:36]} 33. Nd4 {[%emt 0:01:20]} Kh7 {[%emt 0:00:57]} 34. Qd2 {[%emt 0:01:21]} Qa4 {[%emt 0:00:46]} 35. Ne2 {[%emt 0:00:33]} Qc6 {[%emt 0:00:39]} 36. Nd4 {[%emt 0:00:26]} Qc4 {[%emt 0:00:25]} 37. Nb3 {[%emt 0:00:05]} Qc6 {[%emt 0:00:21]} 38. Nd4 {[%emt 0:00:23]} Qc4 {[%emt 0:00:36]} 39. Nb3 {[%emt 0:00:09]} Qc6 {[%emt 0:00:34]} 1/2-1/2

[Event "MPL 19th IND-ch Teams Women 2022"]
[Site "Jalgaon"]
[Date "2022.04.11"]
[Round "4.5"]
[White "Soumya, Swaminathan"]
[Black "Anjali R. Sagar"]
[Result "1-0"]
[ECO "C84"]
[WhiteElo "2360"]
[BlackElo "1836"]
[Annotator "RC"]
[PlyCount "41"]
[EventDate "2022.04.10"]
[EventType "team-tourn"]
[EventCountry "IND"]
[SourceTitle "playchess.com"]
[Source "ChessBase"]
[SourceQuality "1"]
[TimeControl "5400+30"]

1. e4 e5 2. Nf3 Nc6 3. Bb5 a6 4. Ba4 Nf6 5. O-O Be7 6. d3 b5 7. Bb3 d6 8. a4 Bb7 9. Bd2 O-O 10. Re1 Nd7 11. Nc3 Nc5 12. Bd5 b4 13. Ne2 a5 14. Ng3 g6 15. Bh6 Re8 16. c3 Rb8 17. d4 exd4 18. cxd4 Nd7 19. Bxf7+ Kxf7 20. Qb3+ Kf6 21. Ng5 1-0

[Event "MPL 19th IND-ch Teams Women 2022"]
[Site "Jalgaon"]
[Date "2022.04.11"]
[Round "4.6"]
[White "Tejaswini, Sagar"]
[Black "Gomes, Mary Ann"]
[Result "0-1"]
[ECO "B90"]
[WhiteElo "2166"]
[BlackElo "2361"]
[Annotator "TA"]
[PlyCount "48"]
[EventDate "2022.04.10"]
[EventType "team-tourn"]
[EventCountry "IND"]
[SourceTitle "playchess.com"]
[Source "ChessBase"]
[SourceQuality "1"]
[TimeControl "5400+30"]

{[%evp 12,48,7,15,29,3,4,4,29,34,32,32,69,39,66,55,54,48,150,27,37,-233,-221,-330,-257,-615,-339,-346,-350,-350,-345,-315,-324,-313,-325,-575,-600,-6862,-2514]} 1. e4 {[%emt 0:00:04]} c5 {[%emt 0:00:26]} 2. Nf3 {[%emt 0:00:16]} d6 {[%emt 0:00:08]} 3. d4 {[%emt 0:00:13]} cxd4 {[%emt 0:00:08]} 4. Nxd4 {[%emt 0:00:02]} Nf6 {[%emt 0:00:08]} 5. Nc3 {[%emt 0:00:13]} a6 {[%emt 0:00:05]} 6. h3 {[%emt 0:00:18]} e5 {[%emt 0:00:06] 6...e5 is better than 6...e6.} 7. Nde2 {[%emt 0:00:16]} h5 {[%emt 0:00:07] B90: Sicilian Najdorf: Unusual White 6th moves, 6 Be3 Ng4 and 6 Be3 e5.} 8. g3 {[%emt 0:00:21]} Be6 {[%emt 0:00:31]} 9. Bg2 {[%emt 0:00:41]} Nbd7 {[%emt 0:00:14] The position is equal.} 10. a4 {[%emt 0:01:13]} Be7 {[%emt 0:00:17]} 11. b3 {[%emt 0:02:11]} Rc8 {[%emt 0:00:12]} 12. f4 {[%emt 0:04:58] [#] Hoping for f5.} g6 {[%emt 0:09:24] Against f5} 13. Rf1 {[%emt 0:09:27] [#] aiming for f5.} exf4 $146 {[%emt 0:00:49]} ({Predecessor:} 13... Nf8 14. f5 Bd7 15. Be3 Bc6 16. a5 N8d7 17. Nd5 Bxd5 18. exd5 gxf5 19. Rxf5 Nf8 {1-0 (33) Popov,I (2585)-De Lucas Bello,F (1973) La Roda 2019}) 14. gxf4 {[%emt 0:00:49]} Qa5 {[%emt 0:07:08] Prevents f5.} (14... O-O $14) 15. Bd2 {[%emt 0:04:16]} ({Better is} 15. Qd4 $16) 15... Ng4 $11 {[%emt 0:02:04] Strongly threatening ...Bh4+.} 16. Nd4 $2 {[%emt 0:10:25][%mdl 8192] Now White is beyond hope.} ({Don't go for} 16. hxg4 $2 Bh4+ 17. Rf2 Qc5 $19) (16. Qb1 $1 $14 {was the only good move.} Bh4+ 17. Kd1 Nf2+ 18. Kc1) 16... Rxc3 $19 {[%emt 0:12:11]} 17. hxg4 {[%emt 0:05:50]} (17. Rf3 $142 Bh4+ 18. Ke2 Rxf3 19. Nxf3 (19. Bxa5 $2 {too greedy.} Rf2+ 20. Kd3 Nc5+ 21. Kc3 Ne3 $19)) 17... Bxg4 {[%emt 0:00:31]} 18. Nf3 {[%emt 0:08:49] Prevents Bh4+.} (18. Rf3 Bh4+ 19. Kf1 Bxf3 20. Nxf3) 18... Nc5 {[%emt 0:11:19]} 19. Qe2 {[%emt 0:12:48] [#]} Bh4+ $1 {[%emt 0:05:06][%mdl 512]} 20. Kd1 {[%emt 0:01:44]} O-O {[%emt 0:03:37] ...Re8 is the strong threat.} 21. Rb1 {[%emt 0:02:12]} Qb4 {[%emt 0:01:02]} 22. Bxc3 {[%emt 0:04:21]} Qxc3 {[%emt 0:05:30] The board is on fire.} 23. Qc4 $2 {[%emt 0:11:48]} (23. Qd2 Nxe4 24. Qxc3 Nxc3+ 25. Kc1) 23... Qe3 {[%emt 0:01:47][%csl LRe4,LRf4]} 24. b4 {[%emt 0:07:55]} Nxe4 {[%emt 0:00:20] Weighted Error Value: White=1.02/Black=0.34} 0-1

[Event "MPL 19th IND-ch Teams Women 2022"]
[Site "Jalgaon"]
[Date "2022.04.11"]
[Round "4.7"]
[White "Karavade, Eesha"]
[Black "Falak Joni Naik"]
[Result "1-0"]
[ECO "A34"]
[WhiteElo "2345"]
[BlackElo "1329"]
[Annotator "RC"]
[PlyCount "102"]
[EventDate "2022.04.10"]
[EventType "team-tourn"]
[EventCountry "IND"]
[SourceTitle "playchess.com"]
[Source "ChessBase"]
[SourceQuality "1"]
[TimeControl "5400+30"]

1. c4 {[%emt 0:00:27]} Nf6 {[%emt 0:00:21]} 2. Nc3 {[%emt 0:00:34]} c5 {[%emt 0:00:36]} 3. g3 {[%emt 0:00:38]} e6 {[%emt 0:00:58]} 4. Nf3 {[%emt 0:00:25]} d5 {[%emt 0:00:41]} 5. cxd5 {[%emt 0:00:33]} exd5 {[%emt 0:00:28]} 6. d4 {[%emt 0:00:08]} b6 {[%emt 0:00:48]} 7. Bg2 {[%emt 0:02:41]} Bb7 {[%emt 0:00:22]} 8. O-O {[%emt 0:00:10]} Be7 {[%emt 0:01:13]} 9. Bf4 {[%emt 0:02:02]} a6 {[%emt 0:00:46]} 10. Ne5 {[%emt 0:03:03]} O-O {[%emt 0:01:19]} 11. dxc5 {[%emt 0:01:01]} bxc5 {[%emt 0:00:52]} 12. Qb3 {[%emt 0:03:25]} Ra7 {[%emt 0:09:17]} 13. Rfd1 {[%emt 0:00:48]} c4 {[%emt 0:03:59]} 14. Qa4 {[%emt 0:00:39]} Nbd7 {[%emt 0:03:37]} 15. Nxd7 {[%emt 0:01:51]} Nxd7 {[%emt 0:01:49]} 16. Nxd5 {[%emt 0:01:12]} Bxd5 {[%emt 0:01:40]} 17. Rxd5 {[%emt 0:00:45]} Nb6 {[%emt 0:01:01]} 18. Rxd8 {[%emt 0:00:10]} Nxa4 {[%emt 0:00:13]} 19. Rxf8+ {[%emt 0:00:11]} Kxf8 {[%emt 0:00:10]} 20. b3 {[%emt 0:00:34]} Nc3 {[%emt 0:02:23]} 21. Bf3 {[%emt 0:00:33]} Bf6 {[%emt 0:00:29]} 22. Rc1 {[%emt 0:00:50]} cxb3 {[%emt 0:03:45]} 23. axb3 {[%emt 0:00:03]} Rd7 {[%emt 0:00:39]} 24. Kg2 {[%emt 0:01:48]} h6 {[%emt 0:08:00]} 25. Be3 {[%emt 0:04:37]} g5 {[%emt 0:04:54]} 26. Bc5+ {[%emt 0:02:56]} Kg7 {[%emt 0:02:23]} 27. Rc2 {[%emt 0:00:10]} Be5 {[%emt 0:05:51]} 28. Bb4 {[%emt 0:02:11]} Nb5 {[%emt 0:03:48]} 29. e3 {[%emt 0:02:54]} Rd3 {[%emt 0:01:45]} 30. Rc8 {[%emt 0:00:06]} Bd6 {[%emt 0:18:33]} 31. Rd8 {[%emt 0:04:11]} Kf6 {[%emt 0:01:10]} 32. Be2 {[%emt 0:01:34]} Ke7 {[%emt 0:01:42]} 33. Rxd6 {[%emt 0:02:37]} Rxd6 {[%emt 0:00:33]} 34. Bxb5 {[%emt 0:00:07]} axb5 {[%emt 0:00:12]} 35. Kf3 {[%emt 0:00:04]} Ke6 {[%emt 0:02:36]} 36. Bxd6 {[%emt 0:00:06]} Kxd6 {[%emt 0:00:02]} 37. Ke4 {[%emt 0:00:09]} Kc5 {[%emt 0:00:12]} 38. Kd3 {[%emt 0:00:02]} g4 {[%emt 0:01:24]} 39. e4 {[%emt 0:01:17]} Kb4 {[%emt 0:00:54]} 40. Kc2 {[%emt 0:00:03]} f6 {[%emt 0:00:12]} 41. Kb2 {[%emt 0:00:35]} Kc5 {[%emt 0:03:14]} 42. Kc3 {[%emt 0:00:25]} Kc6 {[%emt 0:02:00]} 43. Kd4 {[%emt 0:02:00]} Kd6 {[%emt 0:00:13]} 44. b4 {[%emt 0:00:22]} h5 {[%emt 0:00:06]} 45. Kd3 {[%emt 0:00:47]} Ke6 {[%emt 0:00:28]} 46. Ke3 {[%emt 0:02:52]} Ke5 {[%emt 0:00:51]} 47. h4 {[%emt 0:01:56]} f5 {[%emt 0:07:41]} 48. exf5 {[%emt 0:00:31]} Kxf5 {[%emt 0:00:01]} 49. f4 {[%emt 0:00:52]} gxf3 {[%emt 0:00:28]} 50. Kxf3 {[%emt 0:00:03]} Ke5 {[%emt 0:00:13]} 51. g4 {[%emt 0:00:05]} Kd5 1-0